[Event "Titled Tuesday Blitz November 01 Late 2022"]
[White "Melikyan, Gnel"]
[Black "Martinez Alcantara, Jose Eduardo"]
[WhiteFideId "54109990"]
[BlackFideId "3805662"]
[WhiteElo "2138"]
[BlackElo "2703"]
[Result "0-1"]
[Round "02"]
[TimeControl "180+1"]
[Date "2022.11.01"]
[WhiteClock "0:00:35"]
[BlackClock "0:01:54"]

1. e4 {[%clk 0:02:58]}  c5 {[%clk 0:02:47]} 2. Nf3 {[%clk 0:02:58]}  d6 {[%clk 0:02:47]} 3. d4 {[%clk 0:02:57]}  cxd4 {[%clk 0:02:48]} 4. Nxd4 {[%clk 0:02:57]}  Nf6 {[%clk 0:02:49]} 5. Nc3 {[%clk 0:02:58]}  Nc6 {[%clk 0:02:49]} 6. Bc4 {[%clk 0:02:57]}  Qb6 {[%clk 0:02:49]} 7. Nb3 {[%clk 0:02:58]}  e6 {[%clk 0:02:49]} 8. Be3 {[%clk 0:02:58]}  Qc7 {[%clk 0:02:50]} 9. O-O {[%clk 0:02:57]}  Be7 {[%clk 0:02:50]} 10. Qe2 {[%clk 0:02:52]}  a6 {[%clk 0:02:49]} 11. Rfd1 {[%clk 0:02:51]}  O-O {[%clk 0:02:49]} 12. Nd4 {[%clk 0:02:46]}  b5 {[%clk 0:02:45]} 13. Bd3 {[%clk 0:02:30]}  Bb7 {[%clk 0:02:44]} 14. Nxc6 {[%clk 0:02:27]}  Bxc6 {[%clk 0:02:44]} 15. f3 {[%clk 0:02:27]}  b4 {[%clk 0:02:42]} 16. Nb1 {[%clk 0:02:27]}  d5 {[%clk 0:02:43]} 17. Nd2 {[%clk 0:02:24]}  a5 {[%clk 0:02:42]} 18. Bf2 {[%clk 0:02:18]}  Rfc8 {[%clk 0:02:37]} 19. Rac1 {[%clk 0:02:15]}  Qb7 {[%clk 0:02:30]} 20. e5 {[%clk 0:01:49]}  Nd7 {[%clk 0:02:30]} 21. f4 {[%clk 0:01:50]}  Nc5 {[%clk 0:02:29]} 22. Nf3 {[%clk 0:01:50]}  Nxd3 {[%clk 0:02:28]} 23. cxd3 {[%clk 0:01:49]}  Bd7 {[%clk 0:02:21]} 24. Nd4 {[%clk 0:01:47]}  a4 {[%clk 0:02:21]} 25. Qd2 {[%clk 0:01:42]}  h6 {[%clk 0:02:16]} 26. g3 {[%clk 0:01:40]}  Qa6 {[%clk 0:02:16]} 27. Kg2 {[%clk 0:01:33]}  Bb5 {[%clk 0:02:15]} 28. f5 {[%clk 0:01:23]}  Rxc1 {[%clk 0:02:13]} 29. Rxc1 {[%clk 0:01:23]}  Bxd3 {[%clk 0:02:10]} 30. fxe6 {[%clk 0:01:22]}  Be4+ {[%clk 0:02:10]} 31. Kg1 {[%clk 0:01:23]}  fxe6 {[%clk 0:02:07]} 32. Rc6 {[%clk 0:01:23]}  Qb7 {[%clk 0:02:07]} 33. Rxe6 {[%clk 0:01:22]}  Rc8 {[%clk 0:02:05]} 34. Be3 {[%clk 0:01:15]}  Bc5 {[%clk 0:02:05]} 35. h4 {[%clk 0:00:55]}  Qf7 {[%clk 0:01:58]} 36. Rc6 {[%clk 0:00:45]}  Rxc6 {[%clk 0:01:53]} 37. Nxc6 {[%clk 0:00:46]}  Qf3 {[%clk 0:01:54]} 38. Bxc5 {[%clk 0:00:43]}  Qxg3+ {[%clk 0:01:54]} 39. Kf1 {[%clk 0:00:41]}  Bd3+ {[%clk 0:01:54]} 40. Qxd3 {[%clk 0:00:37]}  Qxd3+ {[%clk 0:01:55]} 41. Ke1 {[%clk 0:00:35]}  Qb1+ {[%clk 0:01:54]} 0-1


[Site "https://www.chess.com"]

[Event "Titled Tuesday Blitz November 01 Late 2022"]
[White "Mendez Fortes, Eduardo Jesus"]
[Black "Fernandez Siles, Luis"]
[WhiteFideId "3502376"]
[BlackFideId "2209420"]
[WhiteElo "2307"]
[BlackElo "2186"]
[Result "1-0"]
[Round "02"]
[TimeControl "180+1"]
[Date "2022.11.02"]
[WhiteClock "0:02:27"]
[BlackClock "0:00:18"]

1. e4 {[%clk 0:03:00]}  c5 {[%clk 0:02:59]} 2. Nf3 {[%clk 0:03:00]}  Nc6 {[%clk 0:02:59]} 3. d4 {[%clk 0:03:00]}  cxd4 {[%clk 0:03:00]} 4. Nxd4 {[%clk 0:03:01]}  Nf6 {[%clk 0:03:00]} 5. Nc3 {[%clk 0:03:01]}  e5 {[%clk 0:03:01]} 6. Ndb5 {[%clk 0:03:02]}  d6 {[%clk 0:03:01]} 7. Bg5 {[%clk 0:03:02]}  a6 {[%clk 0:03:01]} 8. Na3 {[%clk 0:03:03]}  b5 {[%clk 0:03:02]} 9. Nd5 {[%clk 0:03:03]}  Be7 {[%clk 0:03:02]} 10. Bxf6 {[%clk 0:03:04]}  Bxf6 {[%clk 0:03:03]} 11. c4 {[%clk 0:03:04]}  b4 {[%clk 0:03:01]} 12. Nc2 {[%clk 0:03:04]}  O-O {[%clk 0:03:00]} 13. Qf3 {[%clk 0:03:04]}  Bg5 {[%clk 0:02:39]} 14. h4 {[%clk 0:03:03]}  Bh6 {[%clk 0:02:34]} 15. g4 {[%clk 0:03:03]}  Bf4 {[%clk 0:02:30]} 16. Be2 {[%clk 0:03:02]}  Be6 {[%clk 0:02:24]} 17. Nxf4 {[%clk 0:02:57]}  exf4 {[%clk 0:02:25]} 18. Qxf4 {[%clk 0:02:58]}  Ne5 {[%clk 0:02:08]} 19. Ne3 {[%clk 0:02:57]}  Rc8 {[%clk 0:02:01]} 20. b3 {[%clk 0:02:54]}  a5 {[%clk 0:01:59]} 21. Kf1 {[%clk 0:02:50]}  Qb6 {[%clk 0:01:43]} 22. Rd1 {[%clk 0:02:42]}  a4 {[%clk 0:01:42]} 23. h5 {[%clk 0:02:42]}  axb3 {[%clk 0:01:39]} 24. axb3 {[%clk 0:02:38]}  Ra8 {[%clk 0:01:39]} 25. h6 {[%clk 0:02:38]}  Ng6 {[%clk 0:00:18]} 26. Qh2 {[%clk 0:02:27]} 1-0


[Site "https://www.chess.com"]

[Event "Titled Tuesday Blitz November 01 Late 2022"]
[White "Mladenovic, Stefan"]
[Black "ChessBrah"]
[WhiteFideId "942227"]
[WhiteElo "2337"]
[BlackElo "2902"]
[Result "0-1"]
[Round "02"]
[TimeControl "180+1"]
[Date "2022.11.01"]
[WhiteClock "0:00:02"]
[BlackClock "0:00:35"]

1. d4 {[%clk 0:03:00]}  Nf6 {[%clk 0:02:59]} 2. Nf3 {[%clk 0:02:55]}  g6 {[%clk 0:02:57]} 3. Bf4 {[%clk 0:02:53]}  Bg7 {[%clk 0:02:54]} 4. e3 {[%clk 0:02:52]}  d6 {[%clk 0:02:54]} 5. Be2 {[%clk 0:02:47]}  c5 {[%clk 0:02:52]} 6. c3 {[%clk 0:02:43]}  Qb6 {[%clk 0:02:51]} 7. Nbd2 {[%clk 0:02:22]}  O-O {[%clk 0:02:49]} 8. O-O {[%clk 0:02:21]}  Bf5 {[%clk 0:02:40]} 9. Nc4 {[%clk 0:02:19]}  Qc7 {[%clk 0:02:39]} 10. a4 {[%clk 0:02:18]}  Nbd7 {[%clk 0:02:34]} 11. h3 {[%clk 0:02:18]}  h6 {[%clk 0:02:34]} 12. Re1 {[%clk 0:02:08]}  Rac8 {[%clk 0:02:32]} 13. Na3 {[%clk 0:01:56]}  a6 {[%clk 0:02:31]} 14. Bd3 {[%clk 0:01:55]}  Bxd3 {[%clk 0:02:21]} 15. Qxd3 {[%clk 0:01:56]}  Qc6 {[%clk 0:02:21]} 16. e4 {[%clk 0:01:37]}  cxd4 {[%clk 0:02:17]} 17. cxd4 {[%clk 0:01:36]}  Qxa4 {[%clk 0:02:17]} 18. e5 {[%clk 0:01:36]}  Nd5 {[%clk 0:02:12]} 19. Bg3 {[%clk 0:01:34]}  dxe5 {[%clk 0:02:08]} 20. dxe5 {[%clk 0:01:32]}  e6 {[%clk 0:02:07]} 21. Rac1 {[%clk 0:01:23]}  Nc5 {[%clk 0:02:05]} 22. Qd4 {[%clk 0:01:14]}  Qxd4 {[%clk 0:02:02]} 23. Nxd4 {[%clk 0:01:15]}  Nd3 {[%clk 0:02:03]} 24. Rxc8 {[%clk 0:01:13]}  Rxc8 {[%clk 0:02:04]} 25. Re2 {[%clk 0:01:03]}  Rc1+ {[%clk 0:01:52]} 26. Kh2 {[%clk 0:01:02]}  Re1 {[%clk 0:01:43]} 27. Rxe1 {[%clk 0:00:54]}  Nxe1 {[%clk 0:01:43]} 28. Nc4 {[%clk 0:00:54]}  Nd3 {[%clk 0:01:43]} 29. Nf3 {[%clk 0:00:47]}  b5 {[%clk 0:01:42]} 30. Na5 {[%clk 0:00:36]}  Nxb2 {[%clk 0:01:42]} 31. Nd4 {[%clk 0:00:36]}  Nc4 {[%clk 0:01:38]} 32. Nac6 {[%clk 0:00:34]}  Bf8 {[%clk 0:01:33]} 33. Nb8 {[%clk 0:00:32]}  Nc7 {[%clk 0:01:27]} 34. Bh4 {[%clk 0:00:24]}  g5 {[%clk 0:01:26]} 35. Bg3 {[%clk 0:00:24]}  a5 {[%clk 0:01:27]} 36. f4 {[%clk 0:00:24]}  gxf4 {[%clk 0:01:25]} 37. Bxf4 {[%clk 0:00:25]}  a4 {[%clk 0:01:26]} 38. Nd7 {[%clk 0:00:18]}  Bc5 {[%clk 0:01:20]} 39. Nxc5 {[%clk 0:00:18]}  Kh7 {[%clk 0:01:06]} 40. Bc1 {[%clk 0:00:09]}  a3 {[%clk 0:00:59]} 41. Ncb3 {[%clk 0:00:03]}  a2 {[%clk 0:00:48]} 42. Kg1 {[%clk 0:00:04]}  b4 {[%clk 0:00:43]} 43. g4 {[%clk 0:00:04]}  Nd5 {[%clk 0:00:42]} 44. Kf2 {[%clk 0:00:04]}  Nxe5 {[%clk 0:00:42]} 45. Bb2 {[%clk 0:00:02]}  Nd3+ {[%clk 0:00:42]} 46. Ke2 {[%clk 0:00:02]}  Nxb2 {[%clk 0:00:43]} 47. Kd2 {[%clk 0:00:03]}  Nc4+ {[%clk 0:00:42]} 48. Kd3 {[%clk 0:00:03]}  Na5 {[%clk 0:00:38]} 49. Na1 {[%clk 0:00:02]}  Nf4+ {[%clk 0:00:35]} 50. Kc2 {[%clk 0:00:02]}  Nxh3 {[%clk 0:00:35]} 0-1


[Site "https://www.chess.com"]

[Event "Titled Tuesday Blitz November 01 Late 2022"]
[White "Moreno Perez, Tobias Sebastian"]
[Black "Rios Escobar, Adan"]
[WhiteFideId "186716"]
[BlackFideId "3403645"]
[WhiteElo "2529"]
[BlackElo "2352"]
[Result "1-0"]
[Round "02"]
[TimeControl "180+1"]
[Date "2022.11.02"]
[WhiteClock "0:00:04"]
[BlackClock "0:00:08"]

1. Nf3 {[%clk 0:03:00]}  Nf6 {[%clk 0:02:52]} 2. b3 {[%clk 0:03:00]}  g6 {[%clk 0:02:51]} 3. Bb2 {[%clk 0:03:00]}  Bg7 {[%clk 0:02:51]} 4. e3 {[%clk 0:03:01]}  O-O {[%clk 0:02:52]} 5. c4 {[%clk 0:03:01]}  c5 {[%clk 0:02:48]} 6. Be2 {[%clk 0:03:00]}  b6 {[%clk 0:02:43]} 7. O-O {[%clk 0:03:00]}  Bb7 {[%clk 0:02:44]} 8. d4 {[%clk 0:02:59]}  cxd4 {[%clk 0:02:44]} 9. Nxd4 {[%clk 0:02:58]}  Na6 {[%clk 0:02:37]} 10. Nc3 {[%clk 0:02:57]}  Nc5 {[%clk 0:02:37]} 11. Rc1 {[%clk 0:02:51]}  d6 {[%clk 0:02:37]} 12. b4 {[%clk 0:02:15]}  Nce4 {[%clk 0:02:35]} 13. Nxe4 {[%clk 0:02:14]}  Nxe4 {[%clk 0:02:36]} 14. Bf3 {[%clk 0:02:06]}  Qd7 {[%clk 0:02:21]} 15. Qd3 {[%clk 0:02:01]}  Ng5 {[%clk 0:02:14]} 16. Bxb7 {[%clk 0:01:59]}  Qxb7 {[%clk 0:02:15]} 17. f3 {[%clk 0:01:50]}  h5 {[%clk 0:02:12]} 18. e4 {[%clk 0:01:46]}  Rac8 {[%clk 0:02:09]} 19. Qd2 {[%clk 0:01:40]}  Bh6 {[%clk 0:02:06]} 20. Qe2 {[%clk 0:01:36]}  a6 {[%clk 0:01:54]} 21. Rc2 {[%clk 0:01:28]}  e5 {[%clk 0:01:53]} 22. Nb3 {[%clk 0:01:26]}  Ne6 {[%clk 0:01:54]} 23. Rd1 {[%clk 0:01:22]}  Rfd8 {[%clk 0:01:49]} 24. Bc1 {[%clk 0:01:17]}  Nf4 {[%clk 0:01:46]} 25. Bxf4 {[%clk 0:01:15]}  Bxf4 {[%clk 0:01:47]} 26. Rd5 {[%clk 0:01:04]}  Rc6 {[%clk 0:01:22]} 27. g3 {[%clk 0:01:03]}  Bh6 {[%clk 0:01:21]} 28. Kg2 {[%clk 0:01:04]}  Rdc8 {[%clk 0:01:20]} 29. a4 {[%clk 0:01:00]}  b5 {[%clk 0:01:04]} 30. axb5 {[%clk 0:00:56]}  axb5 {[%clk 0:01:03]} 31. c5 {[%clk 0:00:57]}  Qc7 {[%clk 0:00:39]} 32. Ra2 {[%clk 0:00:48]}  dxc5 {[%clk 0:00:37]} 33. Nxc5 {[%clk 0:00:49]}  Bf8 {[%clk 0:00:35]} 34. Nd3 {[%clk 0:00:30]}  Rd8 {[%clk 0:00:26]} 35. Nxe5 {[%clk 0:00:24]}  Re6 {[%clk 0:00:21]} 36. Rxd8 {[%clk 0:00:17]}  Qxd8 {[%clk 0:00:22]} 37. Qxb5 {[%clk 0:00:17]}  Qd4 {[%clk 0:00:18]} 38. Nd3 {[%clk 0:00:12]}  Rd6 {[%clk 0:00:17]} 39. Nf4 {[%clk 0:00:12]}  Rb6 {[%clk 0:00:15]} 40. Qd5 {[%clk 0:00:08]}  Rxb4 {[%clk 0:00:13]} 41. Qxd4 {[%clk 0:00:07]}  Rxd4 {[%clk 0:00:14]} 42. Re2 {[%clk 0:00:07]}  Kg7 {[%clk 0:00:14]} 43. Nh3 {[%clk 0:00:07]}  Be7 {[%clk 0:00:14]} 44. Nf2 {[%clk 0:00:08]}  Bd6 {[%clk 0:00:12]} 45. f4 {[%clk 0:00:08]}  Ra4 {[%clk 0:00:11]} 46. Kf3 {[%clk 0:00:08]}  Bc7 {[%clk 0:00:10]} 47. e5 {[%clk 0:00:08]}  Ra3+ {[%clk 0:00:11]} 48. Re3 {[%clk 0:00:07]}  Ra2 {[%clk 0:00:09]} 49. Re2 {[%clk 0:00:04]}  Ra3+ {[%clk 0:00:09]} 50. Kg2 {[%clk 0:00:04]}  Bb6 {[%clk 0:00:10]} 51. Ne4 {[%clk 0:00:05]}  h4 {[%clk 0:00:07]} 52. Nd6 {[%clk 0:00:04]}  hxg3 {[%clk 0:00:06]} 53. hxg3 {[%clk 0:00:05]}  Bc7 {[%clk 0:00:06]} 54. Nb5 {[%clk 0:00:04]}  Rb3 {[%clk 0:00:03]} 55. Nxc7 {[%clk 0:00:04]}  Ra3 {[%clk 0:00:03]} 56. Nd5 {[%clk 0:00:05]}  Ra5 {[%clk 0:00:03]} 57. Ne3 {[%clk 0:00:06]}  Ra4 {[%clk 0:00:04]} 58. Ng4 {[%clk 0:00:05]}  g5 {[%clk 0:00:02]} 59. Nf6 {[%clk 0:00:04]}  gxf4 {[%clk 0:00:02]} 60. gxf4 {[%clk 0:00:05]}  Rxf4 {[%clk 0:00:01]} 61. Nh5+ {[%clk 0:00:05]}  Kg6 {[%clk 0:00:02]} 62. Nxf4+ {[%clk 0:00:06]}  Kf5 {[%clk 0:00:03]} 63. Kf3 {[%clk 0:00:04]}  f6 {[%clk 0:00:02]} 64. exf6 {[%clk 0:00:05]}  Kxf6 {[%clk 0:00:02]} 65. Ra2 {[%clk 0:00:04]}  Kg5 {[%clk 0:00:03]} 66. Ra5+ {[%clk 0:00:04]}  Kh6 {[%clk 0:00:03]} 67. Kg4 {[%clk 0:00:03]}  Kg7 {[%clk 0:00:04]} 68. Ra6 {[%clk 0:00:04]}  Kf7 {[%clk 0:00:05]} 69. Kf5 {[%clk 0:00:04]}  Ke7 {[%clk 0:00:06]} 70. Ke5 {[%clk 0:00:04]}  Kf8 {[%clk 0:00:07]} 71. Ra7 {[%clk 0:00:04]}  Ke8 {[%clk 0:00:08]} 72. Kd6 {[%clk 0:00:03]}  Kd8 {[%clk 0:00:08]} 73. Ra8# {[%clk 0:00:04]} 1-0


[Site "https://www.chess.com"]

[Event "Titled Tuesday Blitz November 01 Late 2022"]
[White "Munoz Sanchez, Miguel"]
[Black "Raja Harshit"]
[WhiteFideId "3600734"]
[BlackFideId "5089000"]
[WhiteElo "2166"]
[BlackElo "2437"]
[Result "0-1"]
[Round "02"]
[TimeControl "180+1"]
[Date "2022.11.02"]
[WhiteClock "0:02:28"]
[BlackClock "0:02:16"]

1. d4 {[%clk 0:03:00]}  Nf6 {[%clk 0:02:59]} 2. Nf3 {[%clk 0:03:01]}  e6 {[%clk 0:02:59]} 3. g3 {[%clk 0:03:01]}  d5 {[%clk 0:02:59]} 4. Bg2 {[%clk 0:03:02]}  Be7 {[%clk 0:02:58]} 5. O-O {[%clk 0:03:02]}  O-O {[%clk 0:02:59]} 6. c4 {[%clk 0:03:02]}  dxc4 {[%clk 0:03:00]} 7. Qc2 {[%clk 0:03:02]}  b6 {[%clk 0:03:00]} 8. Qxc4 {[%clk 0:02:54]}  Bb7 {[%clk 0:02:58]} 9. Rd1 {[%clk 0:02:51]}  Nbd7 {[%clk 0:02:46]} 10. Nc3 {[%clk 0:02:51]}  c5 {[%clk 0:02:45]} 11. dxc5 {[%clk 0:02:49]}  Bxc5 {[%clk 0:02:42]} 12. Bg5 {[%clk 0:02:41]}  Rc8 {[%clk 0:02:39]} 13. Bxf6 {[%clk 0:02:40]}  Qxf6 {[%clk 0:02:30]} 14. Qa4 {[%clk 0:02:35]}  Ne5 {[%clk 0:02:17]} 15. Nxe5 {[%clk 0:02:28]}  Qxf2+ {[%clk 0:02:16]} 0-1


[Site "https://www.chess.com"]

[Event "Titled Tuesday Blitz November 01 Late 2022"]
[White "Mustafayev, Farid"]
[Black "Ibarra Jerez, Jose Carlos"]
[WhiteFideId "13408771"]
[BlackFideId "2226332"]
[WhiteElo "2192"]
[BlackElo "2627"]
[Result "0-1"]
[Round "02"]
[TimeControl "180+1"]
[Date "2022.11.01"]
[WhiteClock "0:00:16"]
[BlackClock "0:01:17"]

1. d4 {[%clk 0:03:00]}  Nf6 {[%clk 0:02:59]} 2. c4 {[%clk 0:03:00]}  d6 {[%clk 0:03:00]} 3. Nf3 {[%clk 0:02:59]}  g6 {[%clk 0:03:00]} 4. g3 {[%clk 0:02:59]}  Bf5 {[%clk 0:02:59]} 5. Bg2 {[%clk 0:02:59]}  Bg7 {[%clk 0:02:59]} 6. O-O {[%clk 0:02:59]}  O-O {[%clk 0:03:00]} 7. b3 {[%clk 0:02:55]}  a5 {[%clk 0:02:53]} 8. Bb2 {[%clk 0:02:53]}  a4 {[%clk 0:02:54]} 9. Nbd2 {[%clk 0:02:52]}  c6 {[%clk 0:02:52]} 10. b4 {[%clk 0:02:43]}  a3 {[%clk 0:02:47]} 11. Bc3 {[%clk 0:02:43]}  d5 {[%clk 0:02:38]} 12. c5 {[%clk 0:02:37]}  Ne4 {[%clk 0:02:34]} 13. Qb3 {[%clk 0:02:34]}  Nxc3 {[%clk 0:02:31]} 14. Qxc3 {[%clk 0:02:35]}  Na6 {[%clk 0:02:25]} 15. Nh4 {[%clk 0:02:20]}  Bg4 {[%clk 0:02:18]} 16. Rfe1 {[%clk 0:02:12]}  Nc7 {[%clk 0:02:18]} 17. e3 {[%clk 0:02:09]}  e5 {[%clk 0:02:14]} 18. dxe5 {[%clk 0:02:03]}  Nb5 {[%clk 0:02:14]} 19. Qd3 {[%clk 0:02:00]}  Bxe5 {[%clk 0:02:13]} 20. Rab1 {[%clk 0:01:59]}  Bf6 {[%clk 0:01:45]} 21. Ndf3 {[%clk 0:01:16]}  Nc3 {[%clk 0:01:38]} 22. Rb3 {[%clk 0:01:12]}  Ne4 {[%clk 0:01:28]} 23. h3 {[%clk 0:00:55]}  Be6 {[%clk 0:01:27]} 24. Nd4 {[%clk 0:00:30]}  Bxh4 {[%clk 0:01:27]} 25. gxh4 {[%clk 0:00:30]}  Qxh4 {[%clk 0:01:26]} 26. Qf1 {[%clk 0:00:16]}  Nd2 {[%clk 0:01:17]} 0-1


[Site "https://www.chess.com"]

[Event "Titled Tuesday Blitz November 01 Late 2022"]
[White "Omelja, Artem"]
[Black "Gasparyan, David"]
[WhiteFideId "14119846"]
[BlackFideId "13311980"]
[WhiteElo "2403"]
[BlackElo "2377"]
[Result "1-0"]
[Round "02"]
[TimeControl "180+1"]
[Date "2022.11.02"]
[WhiteClock "0:01:08"]
[BlackClock "0:00:04"]

1. d4 {[%clk 0:03:00]}  f5 {[%clk 0:02:57]} 2. Bf4 {[%clk 0:03:00]}  Nf6 {[%clk 0:02:55]} 3. e3 {[%clk 0:03:00]}  b6 {[%clk 0:02:54]} 4. Bd3 {[%clk 0:02:52]}  e6 {[%clk 0:02:54]} 5. Nf3 {[%clk 0:02:48]}  Bb7 {[%clk 0:02:53]} 6. O-O {[%clk 0:02:48]}  Be7 {[%clk 0:02:51]} 7. h3 {[%clk 0:02:48]}  O-O {[%clk 0:02:50]} 8. c4 {[%clk 0:02:47]}  Ne4 {[%clk 0:02:47]} 9. Qc2 {[%clk 0:02:44]}  Qe8 {[%clk 0:02:26]} 10. Nbd2 {[%clk 0:02:44]}  Nxd2 {[%clk 0:02:13]} 11. Nxd2 {[%clk 0:02:45]}  Na6 {[%clk 0:02:02]} 12. Be2 {[%clk 0:02:40]}  Nb4 {[%clk 0:01:51]} 13. Qc3 {[%clk 0:02:38]}  a5 {[%clk 0:01:45]} 14. a3 {[%clk 0:02:36]}  Nc6 {[%clk 0:01:44]} 15. Bf3 {[%clk 0:02:36]}  g5 {[%clk 0:01:40]} 16. Bxc7 {[%clk 0:02:36]}  d6 {[%clk 0:01:38]} 17. Bxb6 {[%clk 0:02:35]}  Qg6 {[%clk 0:01:33]} 18. b4 {[%clk 0:02:28]}  g4 {[%clk 0:01:26]} 19. hxg4 {[%clk 0:02:28]}  fxg4 {[%clk 0:01:27]} 20. Be4 {[%clk 0:02:28]}  Qh5 {[%clk 0:01:27]} 21. b5 {[%clk 0:02:28]}  Rf6 {[%clk 0:01:10]} 22. Rfc1 {[%clk 0:02:20]}  Raf8 {[%clk 0:00:31]} 23. Bxc6 {[%clk 0:02:06]}  Bxc6 {[%clk 0:00:27]} 24. bxc6 {[%clk 0:02:07]}  Rh6 {[%clk 0:00:27]} 25. Kf1 {[%clk 0:02:02]}  g3 {[%clk 0:00:20]} 26. f3 {[%clk 0:01:52]}  Qh1+ {[%clk 0:00:17]} 27. Ke2 {[%clk 0:01:53]}  Qxg2+ {[%clk 0:00:18]} 28. Kd3 {[%clk 0:01:53]}  Qh3 {[%clk 0:00:16]} 29. Rg1 {[%clk 0:01:52]}  Rg6 {[%clk 0:00:15]} 30. c7 {[%clk 0:01:38]}  Qf5+ {[%clk 0:00:15]} 31. e4 {[%clk 0:01:35]}  Qf4 {[%clk 0:00:15]} 32. Raf1 {[%clk 0:01:33]}  Bg5 {[%clk 0:00:15]} 33. Kc2 {[%clk 0:01:31]}  d5 {[%clk 0:00:16]} 34. cxd5 {[%clk 0:01:30]}  exd5 {[%clk 0:00:16]} 35. c8=Q {[%clk 0:01:30]}  Rxc8 {[%clk 0:00:08]} 36. Qxc8+ {[%clk 0:01:30]}  Kg7 {[%clk 0:00:08]} 37. Qc7+ {[%clk 0:01:29]}  Kg8 {[%clk 0:00:08]} 38. Qxf4 {[%clk 0:01:28]}  Bxf4 {[%clk 0:00:09]} 39. Bc5 {[%clk 0:01:28]}  h5 {[%clk 0:00:08]} 40. exd5 {[%clk 0:01:23]}  h4 {[%clk 0:00:07]} 41. Ne4 {[%clk 0:01:21]}  h3 {[%clk 0:00:06]} 42. Nxg3 {[%clk 0:01:21]}  Bxg3 {[%clk 0:00:04]} 43. Bd6 {[%clk 0:01:08]} 1-0


[Site "https://www.chess.com"]

[Event "Titled Tuesday Blitz November 01 Late 2022"]
[White "Papasimakopoulos, Alexandros"]
[Black "Burcu, Cagatay"]
[WhiteFideId "4244125"]
[BlackFideId "6310630"]
[WhiteElo "2809"]
[BlackElo "2556"]
[Result "0-1"]
[Round "02"]
[TimeControl "180+1"]
[Date "2022.11.02"]
[WhiteClock "0:01:07"]
[BlackClock "0:00:24"]

1. d4 {[%clk 0:03:00]}  d5 {[%clk 0:02:59]} 2. c4 {[%clk 0:03:00]}  c6 {[%clk 0:02:59]} 3. cxd5 {[%clk 0:03:00]}  cxd5 {[%clk 0:02:58]} 4. Bf4 {[%clk 0:03:00]}  Nf6 {[%clk 0:02:56]} 5. Nc3 {[%clk 0:03:00]}  Nc6 {[%clk 0:02:56]} 6. e3 {[%clk 0:03:00]}  Bf5 {[%clk 0:02:55]} 7. Qb3 {[%clk 0:02:55]}  Na5 {[%clk 0:02:53]} 8. Qa4+ {[%clk 0:02:54]}  Bd7 {[%clk 0:02:52]} 9. Qc2 {[%clk 0:02:42]}  e6 {[%clk 0:02:47]} 10. Nf3 {[%clk 0:02:35]}  Be7 {[%clk 0:02:47]} 11. h3 {[%clk 0:02:27]}  Rc8 {[%clk 0:02:41]} 12. Bd3 {[%clk 0:02:27]}  Nc6 {[%clk 0:02:41]} 13. a3 {[%clk 0:02:27]}  Nh5 {[%clk 0:02:13]} 14. Bh2 {[%clk 0:02:26]}  f5 {[%clk 0:02:11]} 15. g4 {[%clk 0:02:25]}  fxg4 {[%clk 0:02:01]} 16. hxg4 {[%clk 0:02:26]}  Nf6 {[%clk 0:02:01]} 17. g5 {[%clk 0:02:26]}  Ne4 {[%clk 0:02:02]} 18. Bxe4 {[%clk 0:02:25]}  dxe4 {[%clk 0:02:01]} 19. Qxe4 {[%clk 0:02:24]}  Qb6 {[%clk 0:01:52]} 20. O-O-O {[%clk 0:02:20]}  Na5 {[%clk 0:01:32]} 21. Rd3 {[%clk 0:01:50]}  Nc4 {[%clk 0:01:04]} 22. b4 {[%clk 0:01:33]}  Nxa3 {[%clk 0:00:57]} 23. d5 {[%clk 0:01:20]}  Bb5 {[%clk 0:00:51]} 24. Rhd1 {[%clk 0:01:13]}  Bxd3 {[%clk 0:00:28]} 25. Rxd3 {[%clk 0:01:14]}  Qxb4 {[%clk 0:00:25]} 26. Be5 {[%clk 0:01:07]}  Qxe4 {[%clk 0:00:24]} 0-1


[Site "https://www.chess.com"]

[Event "Titled Tuesday Blitz November 01 Late 2022"]
[White "Piesik, Piotr"]
[Black "Hoffmann, Asa"]
[WhiteFideId "1136194"]
[BlackFideId "2001470"]
[WhiteElo "2323"]
[BlackElo "2117"]
[Result "1-0"]
[Round "02"]
[TimeControl "180+1"]
[Date "2022.11.02"]
[WhiteClock "0:00:49"]
[BlackClock "0:00:33"]

1. Nf3 {[%clk 0:02:57]}  d6 {[%clk 0:02:59]} 2. d4 {[%clk 0:02:56]}  Bg4 {[%clk 0:02:55]} 3. e4 {[%clk 0:02:56]}  Nf6 {[%clk 0:02:55]} 4. Nbd2 {[%clk 0:02:55]}  c6 {[%clk 0:02:53]} 5. h3 {[%clk 0:02:55]}  Bh5 {[%clk 0:02:53]} 6. Bd3 {[%clk 0:02:54]}  e6 {[%clk 0:02:53]} 7. O-O {[%clk 0:02:54]}  d5 {[%clk 0:02:53]} 8. e5 {[%clk 0:02:51]}  Nfd7 {[%clk 0:02:52]} 9. c4 {[%clk 0:02:45]}  dxc4 {[%clk 0:02:49]} 10. Nxc4 {[%clk 0:02:43]}  Nb6 {[%clk 0:02:48]} 11. Be3 {[%clk 0:02:44]}  N8d7 {[%clk 0:02:42]} 12. a4 {[%clk 0:02:40]}  Nxc4 {[%clk 0:02:41]} 13. Bxc4 {[%clk 0:02:40]}  Nb6 {[%clk 0:02:41]} 14. Bb3 {[%clk 0:02:38]}  Nd5 {[%clk 0:02:39]} 15. g4 {[%clk 0:02:35]}  Bg6 {[%clk 0:02:39]} 16. Nd2 {[%clk 0:02:30]}  Be7 {[%clk 0:02:36]} 17. Qf3 {[%clk 0:02:28]}  h5 {[%clk 0:02:34]} 18. a5 {[%clk 0:02:20]}  a6 {[%clk 0:02:33]} 19. Ne4 {[%clk 0:02:13]}  hxg4 {[%clk 0:02:28]} 20. hxg4 {[%clk 0:02:13]}  Bxe4 {[%clk 0:02:27]} 21. Qxe4 {[%clk 0:02:13]}  Bb4 {[%clk 0:02:10]} 22. Kg2 {[%clk 0:02:07]}  Bxa5 {[%clk 0:02:01]} 23. Rh1 {[%clk 0:02:07]}  Rf8 {[%clk 0:01:56]} 24. Rh7 {[%clk 0:02:06]}  g6 {[%clk 0:01:50]} 25. Bh6 {[%clk 0:02:05]}  Bb4 {[%clk 0:01:44]} 26. Bxf8 {[%clk 0:02:03]}  Bxf8 {[%clk 0:01:43]} 27. Qf3 {[%clk 0:01:57]}  Qd7 {[%clk 0:01:26]} 28. Rah1 {[%clk 0:01:55]}  O-O-O {[%clk 0:01:13]} 29. Rxf7 {[%clk 0:01:54]}  Be7 {[%clk 0:01:12]} 30. Rhh7 {[%clk 0:01:53]}  Re8 {[%clk 0:01:11]} 31. Bc2 {[%clk 0:01:35]}  Qc7 {[%clk 0:01:03]} 32. Bxg6 {[%clk 0:01:31]}  Qb6 {[%clk 0:01:03]} 33. Rfg7 {[%clk 0:01:04]}  Rd8 {[%clk 0:00:52]} 34. Rxe7 {[%clk 0:01:03]}  Nxe7 {[%clk 0:00:52]} 35. Rxe7 {[%clk 0:01:03]}  Qxd4 {[%clk 0:00:51]} 36. Rxe6 {[%clk 0:01:02]}  Qxb2 {[%clk 0:00:48]} 37. Qf5 {[%clk 0:00:53]}  Kb8 {[%clk 0:00:47]} 38. Re8 {[%clk 0:00:53]}  Rxe8 {[%clk 0:00:43]} 39. Bxe8 {[%clk 0:00:54]}  Qd4 {[%clk 0:00:42]} 40. e6 {[%clk 0:00:53]}  Qd6 {[%clk 0:00:40]} 41. Bf7 {[%clk 0:00:50]}  c5 {[%clk 0:00:36]} 42. g5 {[%clk 0:00:50]}  c4 {[%clk 0:00:35]} 43. g6 {[%clk 0:00:50]}  Qf8 {[%clk 0:00:33]} 44. Qe5+ {[%clk 0:00:49]}  Ka8 {[%clk 0:00:33]} 45. e7 {[%clk 0:00:49]} 1-0


[Site "https://www.chess.com"]